bitfinex-derivatives/quotes_SOLF0:USTF0_20250730
["timestamp","ask_amount","ask_price","bid_price","bid_amount"]
[1753878470746,3.25,177.89,177.88,3.04]
[1753878471646,2.81574122,177.91,177.88,3.04]
[1753878471849,2.99,177.9,177.88,3.04]
[1753878472048,2.99,177.9,177.89,3.15]
[1753878472249,8.6115,177.9,177.86,5.6223]
[1753878472440,2.99,177.89,177.87,3.15]
[1753878472953,2.99,177.89,177.88,3.15]
[1753878474350,2.81574122,177.91,177.83,2.81574122]
[1753878474550,5.80574122,177.91,177.84,3.15]
[1753878474747,5.80574122,177.93,177.86,3.15]
[1753878474949,2.99,177.93,177.88,3.15]
[1753878475348,5.6209,177.92,177.88,3.15]
[1753878475543,2.99,177.93,177.88,3.15]
[1753878475949,2.99,177.92,177.88,3.15]
[1753878476354,2.99,177.91,177.88,3.15]
[1753878476556,2.99,177.9,177.87,5.6221]
[1753878476756,2.99,177.9,177.88,3.15]
[1753878476956,8.6113,177.9,177.89,3.15]
[1753878477148,2.81574122,177.9,177.84,3.15]
[1753878477549,8.6119,177.88,177.83,2.81574122]
[1753878477853,2.81574122,177.92,177.84,3.15]
[1753878478057,5.6216,177.9,177.86,5.6225]
[1753878478253,8.6116,177.9,177.86,5.6225]
[1753878478454,2.99,177.9,177.88,3.15]
[1753878478650,2.81574122,177.92,177.88,3.15]
[1753878478651,2.99,177.91,177.88,3.15]
[1753878478855,2.81574122,177.9,177.84,3.15]
[1753878479055,2.99,177.89,177.83,3.15]
[1753878479356,5.80574122,177.89,177.83,3.15]
[1753878479558,2.81574122,177.89,177.83,3.15]
[1753878479758,2.99,177.87,177.83,3.15]
[1753878479958,8.6124,177.87,177.83,8.7734]
[1753878480163,2.99,177.87,177.85,3.15]
[1753878480364,2.99,177.86,177.85,3.15]
[1753878481054,8.6129,177.85,177.8,2.81574122]
[1753878481255,2.99,177.84,177.83,3.15]
[1753878481661,8.6132,177.84,177.81,5.624]
[1753878481862,2.99,177.83,177.8,3.15]
[1753878482163,2.99,177.83,177.81,3.15]
[1753878482466,2.99,177.82,177.81,3.15]
[1753878482668,8.6138,177.82,177.81,3.15]
[1753878483865,4.71869955,177.92,177.77,108.36]
[1753878484063,5.80574122,177.88,177.79,3.15]
[1753878484368,2.99,177.85,177.78,2.81574122]
[1753878484662,2.99,177.81,177.77,3.15]
[1753878484857,8.6147,177.8,177.76,5.6257]
[1753878485063,2.99,177.8,177.79,3.15]
[1753878485259,2.99,177.79,177.73,3.15]
[1753878485460,2.81574122,177.76,177.69,3.15]
[1753878485665,2.99,177.75,177.69,3.15]
[1753878485861,5.6266,177.74,177.7,5.6275]
[1753878486167,2.99,177.73,177.69,3.15]
[1753878486356,2.99,177.75,177.69,3.15]
[1753878486557,8.6166,177.74,177.71,3.15]
[1753878486765,2.99,177.76,177.71,3.15]
[1753878487067,5.6261,177.75,177.72,3.15]
[1753878487467,2.99,177.76,177.72,3.15]
[1753878487660,2.99,177.75,177.69,3.15]
[1753878487865,14.06214122,177.84,177.67,3.15]
[1753878487866,2.81574122,177.72,177.67,3.15]
[1753878488065,2.81574122,177.74,177.65,108.34]
[1753878488265,2.81574122,177.74,177.7,3.15]
[1753878488465,2.81574122,177.72,177.7,3.15]
[1753878488663,5.6279,177.69,177.66,3.15]
[1753878488959,2.81574122,177.72,177.63,2.81574122]
[1753878489166,2.99,177.68,177.63,2.81574122]
[1753878489367,2.99,177.68,177.66,3.15]
[1753878489567,8.6174,177.71,177.64,3.15]
[1753878489963,5.6274,177.71,177.64,3.15]
[1753878490166,7.0,177.75,177.7,3.15]
[1753878490167,2.99,177.73,177.7,3.15]
[1753878490471,2.99,177.73,177.66,3.15]
[1753878490668,2.99,177.71,177.66,3.15]
[1753878490863,2.99,177.71,177.64,3.15]
[1753878491268,2.99,177.71,177.69,3.15]
[1753878491566,9.99,177.75,177.69,2.81574122]
[1753878491770,7.0,177.75,177.7,3.15]
[1753878492273,7.0,177.75,177.74,8.44204122]
[1753878492462,7.0,177.75,177.74,8.7763]
[1753878492663,7.0,177.75,177.74,11.59204122]
[1753878494673,7.0,177.75,177.74,8.7763]
[1753878494868,7.0,177.75,177.74,11.59204122]
[1753878495069,7.0,177.75,177.74,3.15]
[1753878495778,7.0,177.75,177.74,8.7763]
[1753878495972,7.0,177.75,177.74,11.59204122]
[1753878501674,7.0,177.75,177.74,3.19]
[1753878501874,7.0,177.75,177.71,3.19]
[1753878502179,3.19,177.72,177.71,3.19]
[1753878502377,7.0,177.75,177.71,2.81574122]
[1753878502576,3.19,177.73,177.72,3.19]
[1753878502771,3.19,177.74,177.69,3.19]
[1753878502978,3.19,177.71,177.67,2.81574122]
[1753878503173,3.19,177.71,177.68,3.19]
[1753878503371,8.8179,177.69,177.66,3.19]
[1753878503582,3.19,177.69,177.65,2.81574122]
[1753878503774,3.19,177.73,177.66,3.19]
[1753878503978,4.59438091,177.72,177.68,3.19]
[1753878504173,3.19,177.73,177.68,6.00574122]
[1753878504382,4.59573201,177.72,177.69,3.19]
[1753878504581,10.19,177.75,177.69,3.19]
[1753878504780,7.78516283,177.74,177.69,3.19]
[1753878505082,4.59516283,177.73,177.68,2.81574122]
[1753878505279,4.59516283,177.72,177.69,3.19]
[1753878505486,8.8167,177.73,177.7,3.19]
[1753878505674,7.78640338,177.72,177.7,3.19]
[1753878505880,3.19,177.74,177.71,3.19]
[1753878506080,4.59628129,177.73,177.72,3.19]
[1753878506283,7.78628129,177.73,177.72,3.19]
[1753878506586,4.59628129,177.73,177.72,8.817]
[1753878506779,4.59628129,177.73,177.72,3.19]
[1753878507184,4.59628129,177.73,177.72,8.817]
[1753878507687,7.0,177.75,177.65,3.19]
[1753878507983,4.6000632,177.74,177.65,3.19]
[1753878508186,7.0,177.75,177.73,5.6264]
[1753878508376,7.0,177.75,177.74,3.19]
[1753878508575,14.7930915,177.75,177.74,3.19]
[1753878509079,11.6030915,177.75,177.74,8.8163]
[1753878509681,7.0,177.75,177.74,8.8163]
[1753878510481,11.494792,177.75,177.74,8.8163]
[1753878510684,14.684792,177.75,177.65,3.19]
[1753878510894,3.19,177.74,177.65,3.19]
[1753878511585,8.8164,177.74,177.65,3.19]
[1753878511786,3.19,177.74,177.71,3.19]
[1753878511985,3.19,177.74,177.7,8.8174]
[1753878512189,3.19,177.72,177.7,8.8174]
[1753878512888,3.19,177.74,177.71,8.8173]
[1753878513088,4.50194433,177.73,177.72,3.19]
[1753878513489,4.50194433,177.73,177.72,8.817]
[1753878513688,7.0,177.75,177.72,8.817]
[1753878513689,7.0,177.75,177.72,3.19]
[1753878514187,7.0,177.75,177.74,8.8163]
[1753878516588,7.0,177.75,177.68,3.19]
[1753878517088,3.19,177.74,177.68,3.19]
[1753878517788,7.0,177.75,177.68,3.19]
[1753878518089,8.8165,177.74,177.71,8.8171]
[1753878518281,3.19,177.74,177.72,3.19]
[1753878518484,9.19,177.73,177.72,3.19]
[1753878519088,9.19,177.73,177.65,3.19]
[1753878520191,9.19,177.73,177.72,5.627]
[1753878520493,9.19,177.73,177.72,8.817]
[1753878521090,12.38,177.73,177.71,5.6271]
[1753878521289,12.38,177.73,177.68,3.19]
[1753878521290,9.19,177.73,177.68,3.19]
[1753878521490,3.19,177.72,177.65,3.19]
[1753878521696,9.19,177.73,177.65,3.19]
[1753878522397,9.19,177.73,177.72,8.817]
[1753878523695,7.0,177.75,177.72,3.19]
[1753878523897,7.0,177.75,177.74,8.8163]
[1753878530904,3.19,177.74,177.65,3.19]
[1753878531507,3.22,177.72,177.71,5.6271]
[1753878531709,3.22,177.74,177.72,3.16]
[1753878531912,10.22,177.75,177.74,3.16]
[1753878532113,10.22,177.75,177.74,5.6263]
[1753878533014,10.22,177.75,177.74,8.7863]
[1753878533312,7.0,177.75,177.74,8.7863]
[1753878533806,10.22,177.75,177.74,8.7863]
[1753878534109,7.0,177.75,177.74,8.7863]
[1753878539717,3.22,177.74,177.69,3.16]
[1753878539911,3.22,177.74,177.66,3.16]
[1753878540113,3.22,177.74,177.64,3.16]
[1753878540916,5.6266,177.74,177.71,5.6271]
[1753878541116,3.22,177.74,177.73,3.16]
[1753878541318,3.22,177.73,177.71,3.16]
[1753878541516,3.22,177.73,177.69,3.16]
[1753878541712,8.8464,177.74,177.62,14.4201]
[1753878541914,3.22,177.73,177.63,3.16]
[1753878542714,10.22,177.75,177.63,3.16]
[1753878543018,7.0,177.75,177.73,5.6266]
[1753878543216,12.6261,177.75,177.71,3.16]
[1753878543411,3.22,177.73,177.71,3.16]
[1753878543617,3.22,177.73,177.72,5.6269]
[1753878544619,7.0,177.75,177.74,8.7863]
[1753878545121,10.22,177.75,177.74,8.7863]
[1753878546120,3.22,177.74,177.65,3.16]
[1753878546319,7.0,177.75,177.67,3.16]
[1753878546716,7.0,177.75,177.74,8.7863]
[1753878552526,12.62,177.75,177.63,12.50545573]
[1753878552722,12.59756975,177.74,177.58,3.16]
[1753878553031,4.72695151,177.66,177.58,3.16]
[1753878553220,16.92837028,177.65,177.58,3.16]
[1753878553416,22.55797028,177.64,177.59,5.6308]
[1753878553719,4.33080053,177.63,177.6,3.16]
[1753878553919,5.6297,177.64,177.6,3.16]
[1753878554230,15.49324476,177.63,177.56,3.16]
[1753878554420,4.70933883,177.62,177.56,3.16]
[1753878554629,4.72695151,177.67,177.56,3.16]
[1753878554924,19.00010163,177.66,177.56,3.16]
[1753878555125,15.48006373,177.65,177.56,3.16]
[1753878555327,15.48006373,177.64,177.49,3.16]
[1753878555524,10.77056632,177.63,177.49,3.16]
[1753878555718,4.72695151,177.7,177.49,3.16]
[1753878555915,5.6295,177.64,177.6,5.6307]
[1753878556130,5.41829794,177.63,177.62,3.16]
[1753878557923,11.04809794,177.63,177.62,3.16]
[1753878558318,5.41829794,177.63,177.62,3.16]
[1753878559224,5.41829794,177.63,177.59,8.791]
[1753878559425,5.6296,177.64,177.6,3.16]
[1753878559726,5.40672644,177.63,177.61,3.16]
[1753878559933,4.72695151,177.71,177.61,3.16]
[1753878560227,19.78569789,177.7,177.61,3.16]
[1753878560427,5.6288,177.67,177.62,5.6299]
[1753878560625,11.57172825,177.66,177.63,3.16]
[1753878560829,11.57172825,177.65,177.64,3.16]
[1753878561430,6.16517979,177.65,177.64,3.16]
[1753878561634,5.40301682,177.65,177.64,3.16]
[1753878561831,11.56819661,177.65,177.64,3.16]
[1753878562233,11.56819661,177.65,177.61,5.6302]
[1753878562531,6.16517979,177.64,177.63,3.19]
[1753878562733,5.17080655,177.64,177.63,3.19]
[1753878562932,11.33598634,177.64,177.63,3.19]
[1753878563733,16.73701897,177.64,177.63,3.19]
[1753878564532,17.44215619,177.64,177.63,3.19]
[1753878565027,12.04112356,177.64,177.63,3.19]
[1753878565231,6.87031701,177.64,177.63,3.19]
[1753878566427,17.37085709,177.64,177.51,3.19]
[1753878566628,12.03684687,177.63,177.59,3.19]
[1753878566835,6.87031701,177.62,177.59,3.19]
[1753878567038,6.87031701,177.61,177.6,5.6308]
[1753878567233,6.87031701,177.61,177.6,8.8208]
[1753878569336,3.22,177.68,177.6,3.19]
[1753878569537,17.23434823,177.67,177.6,3.19]
[1753878569837,10.49521406,177.66,177.6,3.19]
[1753878570038,10.49521406,177.65,177.6,3.19]
[1753878570241,5.33148389,177.64,177.6,3.19]
[1753878570439,5.33148389,177.63,177.6,3.19]
[1753878570637,7.94695151,177.7,177.6,3.19]
[1753878570839,8.68217201,177.69,177.6,3.19]
[1753878571040,8.68217201,177.69,177.47,0.9774869]
[1753878571041,5.16340061,177.68,177.52,16.88]
[1753878571336,3.22,177.7,177.54,3.19]
[1753878571535,5.16378836,177.69,177.51,16.88]
[1753878571741,3.22,177.67,177.66,3.19]
[1753878572241,8.38448246,177.67,177.66,3.19]
[1753878573139,3.22,177.66,177.65,8.819]
[1753878574545,9.21,177.68,177.67,8.8185]
[1753878574841,14.37591396,177.68,177.67,8.8185]
[1753878575044,9.21,177.68,177.67,8.8185]
[1753878576545,4.78138,177.72,177.71,5.6273]
[1753878576740,9.94744147,177.72,177.71,8.8173]
[1753878577842,4.78138,177.72,177.71,8.8173]
[1753878578346,4.78138,177.72,177.71,3.19]
[1753878579434,4.78138,177.72,177.67,5.6285]
[1753878579634,3.22,177.7,177.69,3.19]
[1753878579837,3.22,177.71,177.7,3.19]
[1753878580033,3.22,177.71,177.66,3.19]
[1753878581947,4.78138,177.72,177.66,3.19]
[1753878582141,4.78138,177.72,177.58,16.88]
[1753878582337,4.78138,177.72,177.62,16.88]
[1753878582544,4.78138,177.72,177.64,3.19]
[1753878583442,4.78138,177.72,177.69,3.19]
[1753878585650,4.78138,177.72,177.7,5.6275]
[1753878585843,4.78138,177.72,177.71,3.19]
[1753878586645,8.00138,177.72,177.68,5.6281]
[1753878586846,4.78138,177.72,177.68,5.6281]
[1753878587145,8.00138,177.72,177.71,3.19]
[1753878587340,8.00138,177.72,177.65,5.6288]
[1753878587544,4.78138,177.72,177.66,3.19]
[1753878587748,8.00138,177.72,177.66,3.19]
[1753878588051,3.22,177.7,177.66,3.19]
[1753878588949,3.22,177.71,177.67,3.19]
[1753878589445,4.78138,177.72,177.66,3.19]
[1753878589651,3.22,177.71,177.68,3.19]
[1753878589849,4.78138,177.72,177.68,3.19]
[1753878590152,3.22,177.71,177.68,3.19]
[1753878590650,4.78138,177.72,177.68,3.19]
[1753878590847,4.78138,177.72,177.7,3.19]
[1753878591553,4.78138,177.72,177.71,3.27]
[1753878593750,18.15,177.75,177.71,8.8969]
[1753878593953,21.39,177.75,177.71,3.27]
[1753878594451,3.24,177.74,177.71,3.27]
[1753878594653,21.39,177.75,177.71,8.897]
[1753878594853,21.39,177.75,177.72,3.27]
[1753878595053,3.24,177.74,177.72,3.27]
[1753878595352,21.39,177.75,177.74,3.27]
[1753878596352,18.15,177.75,177.74,3.27]
[1753878596552,3.24,177.78,177.74,3.27]
[1753878596953,3.24,177.77,177.74,3.27]
[1753878597751,3.24,177.84,177.76,3.27]
[1753878597945,3.24,177.82,177.76,3.27]
[1753878598144,3.24,177.8,177.77,3.27]
[1753878598346,3.24,177.78,177.76,3.27]
[1753878598553,3.24,177.78,177.77,3.27]
[1753878599748,8.3,177.79,177.73,5.6265]
[1753878599951,3.24,177.78,177.55,8.889]
[1753878600145,3.24,177.78,177.58,33.78]
[1753878600355,3.24,177.76,177.64,16.88]
[1753878600549,3.24,177.76,177.66,16.88]
[1753878600745,3.24,177.76,177.67,3.27]
[1753878601355,3.24,177.76,177.59,62.0]
[1753878601655,3.24,177.76,177.69,3.27]
[1753878602052,3.24,177.76,177.7,3.27]
[1753878602656,3.24,177.76,177.73,5.6263]
[1753878602860,3.24,177.76,177.75,3.27]
[1753878603151,11.98,177.77,177.75,3.27]
[1753878603353,8.3,177.79,177.75,3.27]
[1753878603748,8.3,177.79,177.76,5.6255]
[1753878603961,4.72695151,177.89,177.78,3.27]
[1753878604260,13.46017401,177.88,177.68,16.89]
[1753878604447,13.46017401,177.87,177.7,16.89]
[1753878604664,3.51489837,177.86,177.72,16.89]
[1753878604852,4.72695151,177.94,177.85,5.6226]
[1753878605047,15.25757835,177.93,177.72,16.89]
[1753878605247,15.25757835,177.92,177.72,16.89]
[1753878605448,15.25757835,177.91,177.72,16.89]
[1753878605754,15.25757835,177.9,177.72,16.89]
[1753878605965,9.85840197,177.89,177.79,5.6245]
[1753878606150,4.83573227,177.88,177.79,5.6245]
[1753878606349,4.83573227,177.87,177.71,378.08]
[1753878606554,4.83573227,177.86,177.74,5.626]
[1753878606754,4.83580548,177.85,177.71,378.08]
[1753878606962,4.83580548,177.84,177.71,378.08]
[1753878607254,5.12,177.87,177.71,378.08]
[1753878607456,9.84327919,177.86,177.71,378.08]
[1753878607652,9.84327919,177.85,177.71,378.08]
[1753878607855,5.00737748,177.84,177.71,394.97]
[1753878608055,5.12,177.87,177.71,394.97]
[1753878608560,5.00567701,177.86,177.71,394.97]
[1753878608764,5.12,177.87,177.71,394.97]
[1753878609058,4.98890533,177.86,177.71,394.97]
[1753878609260,5.12,177.87,177.73,16.89]
[1753878609459,4.98858501,177.86,177.73,16.89]
[1753878609661,5.12,177.87,177.73,16.89]
[1753878610160,5.12,177.87,177.71,378.08]
[1753878610161,4.72695151,177.92,177.72,16.89]
[1753878610363,15.1465872,177.91,177.74,16.89]
[1753878610557,9.78180158,177.9,177.74,16.89]
[1753878610756,4.72695151,177.96,177.74,16.89]
[1753878611059,16.9,178.14,177.74,16.89]
[1753878611060,19.8717268,177.95,177.74,16.89]
[1753878611256,19.8717268,177.94,177.73,16.89]
[1753878611461,15.14477529,177.93,177.86,5.6223]
[1753878611658,15.14477529,177.92,177.86,5.6223]
[1753878611855,4.83242788,177.91,177.86,5.6223]
[1753878612055,4.83242788,177.9,177.88,5.6216]
[1753878612251,4.72695151,177.97,177.88,5.6216]
[1753878612459,15.13527185,177.96,177.88,5.6216]
[1753878612761,15.13527185,177.95,177.88,5.6216]
[1753878612955,15.13527185,177.94,177.9,5.6211]
[1753878613157,9.77443108,177.93,177.9,5.6211]
[1753878613457,5.6151,178.1,177.85,377.88]
[1753878613458,4.72695151,178.01,177.85,377.88]
[1753878613661,10.30406478,178.0,177.85,377.88]
[1753878613854,10.30406478,177.99,177.85,377.88]
[1753878614054,10.30406478,177.98,177.85,377.88]
[1753878614257,10.21899829,177.97,177.85,377.88]
[1753878614458,5.27681086,177.96,177.92,5.6204]
[1753878614657,4.72695151,178.03,177.92,5.6204]
[1753878614658,5.27681086,177.95,177.92,5.6204]
[1753878614850,5.27877568,177.94,177.92,5.6204]
[1753878615055,4.72695151,178.04,177.92,5.6204]
[1753878615259,10.10064729,178.03,177.92,5.6204]
[1753878615463,10.10064729,178.02,177.9,5.6211]
[1753878615659,10.10064729,178.01,177.85,377.88]
[1753878615864,10.10064729,178.0,177.85,377.88]
[1753878616058,10.10064729,177.99,177.91,5.6206]
[1753878616262,5.27877567,177.98,177.85,394.77]
[1753878616456,5.27877567,177.97,177.85,394.77]
[1753878616662,5.27877567,177.96,177.85,394.77]
[1753878616863,3.51215564,177.95,177.85,394.77]
[1753878617064,3.51215564,177.94,177.85,394.77]
[1753878617367,3.51215564,177.93,177.85,394.77]
[1753878617667,4.72695151,178.06,177.85,394.77]
[1753878617861,10.04158542,178.05,177.85,394.77]
[1753878618061,10.04158542,178.04,177.85,394.77]
[1753878618258,14.76853693,178.03,177.85,377.88]
[1753878618456,14.76853693,178.02,177.85,377.88]
[1753878618667,10.04158542,178.01,177.85,377.88]
[1753878618868,10.04158542,178.0,177.88,5.6218]
[1753878619057,10.04158542,177.99,177.88,5.6218]
[1753878619261,10.04158542,177.98,177.88,5.6218]
[1753878619464,4.7767216,177.97,177.88,5.6218]
[1753878619766,4.7767216,177.96,177.88,5.6218]
[1753878620069,4.72695151,178.01,177.88,5.6218]
[1753878620268,10.0358742,178.0,177.88,5.6218]
[1753878620460,10.0358742,177.99,177.85,383.5025]
[1753878620666,10.0358742,177.98,177.85,377.88]
[1753878620967,4.72695151,178.0,177.85,377.88]
[1753878620968,4.77403586,177.97,177.85,377.88]
[1753878621169,4.77403586,177.96,177.85,377.88]
[1753878621372,35.81849526,178.12,177.85,377.88]
[1753878621373,4.77403586,177.95,177.85,503.09873809]
[1753878621565,4.77403586,177.94,177.85,503.09873809]
[1753878621767,4.77403586,177.93,177.85,503.09873809]
[1753878622068,4.77403586,177.92,177.85,503.09873809]
[1753878622267,4.77403586,177.91,177.85,503.09873809]
[1753878622471,4.77403586,177.9,177.85,503.09873809]
[1753878622771,4.77403586,177.89,177.85,503.09873809]
[1753878622969,4.72695151,177.99,177.85,503.09873809]
[1753878623174,4.72695151,178.02,177.85,519.98873809]
[1753878623364,5.22213042,178.01,177.85,519.98873809]
[1753878623672,5.22213042,178.0,177.85,519.98873809]
[1753878623869,7.0,177.95,177.85,519.98873809]
[1753878624077,7.0,177.95,177.88,5.6218]
[1753878624875,7.0,177.95,177.86,5.6224]
[1753878625169,7.0,177.95,177.85,503.09873809]
[1753878625566,7.0,177.95,177.85,377.88]
[1753878625761,4.64789018,177.94,177.75,377.68]
[1753878625969,4.64789018,177.93,177.78,5.625]
[1753878626280,4.64915234,177.92,177.75,377.68]
[1753878626472,9.37610385,177.91,177.75,377.68]
[1753878626671,9.37610385,177.9,177.75,377.68]
[1753878626974,4.72695151,177.9,177.76,5.6256]
[1753878627176,4.65084824,177.89,177.76,5.6256]
[1753878627377,4.72695151,177.91,177.75,377.68]
[1753878627578,10.34885151,177.88,177.75,377.68]
[1753878627773,4.72695151,177.86,177.75,377.68]
[1753878628173,4.72695151,177.87,177.75,377.68]
[1753878628881,4.72695151,177.85,177.64,377.76]
[1753878629182,9.38083211,177.84,177.64,377.76]
[1753878629380,4.72695151,177.85,177.73,5.6265]
[1753878629680,4.72695151,177.85,177.64,377.76]
[1753878630379,4.72695151,177.85,177.69,5.6278]
[1753878630574,4.72695151,177.85,177.64,377.76]
[1753878630775,4.72695151,177.83,177.64,377.76]
[1753878630978,8.12329958,177.82,177.7,5.6275]
[1753878631171,4.72695151,177.85,177.7,5.6275]
[1753878631376,13.35478635,177.84,177.7,5.6275]
[1753878631575,4.72695151,177.85,177.7,5.6275]
[1753878631880,4.72695151,177.85,177.68,5.6282]
[1753878632279,18.08286191,177.84,177.64,377.76]
[1753878632479,4.72695151,177.83,177.64,377.76]
[1753878632776,23.71051548,177.82,177.64,377.76]
[1753878632976,18.08671548,177.81,177.64,377.76]
[1753878633182,8.12607704,177.8,177.65,5.6291]
[1753878633381,10.35075151,177.82,177.65,5.6291]
[1753878633580,13.35979695,177.81,177.65,5.6291]
[1753878633781,4.60896897,177.8,177.67,5.6284]
[1753878633980,4.72695151,177.82,177.67,5.6284]
[1753878634274,8.12591621,177.81,177.64,377.76]
[1753878634480,4.72695151,177.85,177.64,377.76]
[1753878634780,17.9898302,177.84,177.64,377.76]
[1753878635083,22.55065892,177.83,177.67,5.6285]
[1753878635283,17.82370741,177.82,177.64,377.76]
[1753878635479,5.6245,177.8,177.64,377.76]
[1753878635780,4.55822942,177.79,177.64,377.76]
[1753878635978,4.55822942,177.78,177.64,377.76]
[1753878636175,4.72695151,177.82,177.64,377.76]
[1753878636377,4.55943589,177.81,177.64,377.76]
[1753878636574,4.55943589,177.8,177.64,377.76]
[1753878636777,15.33441808,177.96,177.64,377.76]
[1753878636778,4.72695151,177.84,177.64,377.76]
[1753878636974,11.92849526,177.93,177.64,377.76]
[1753878636975,4.55893286,177.83,177.64,377.76]
[1753878637179,4.72695151,177.87,177.64,377.76]
[1753878637380,17.82599905,177.86,177.64,377.76]
[1753878637678,8.07515835,177.85,177.64,377.76]
[1753878637881,10.18216797,177.84,177.64,377.76]
[1753878638083,4.55896797,177.83,177.64,377.76]
[1753878638683,5.6238,177.82,177.66,5.6288]
[1753878638979,4.55896797,177.81,177.64,377.76]
[1753878639184,4.55896797,177.8,177.65,107.36]
[1753878639484,10.35005151,177.84,177.67,5.6284]
[1753878639683,17.82815355,177.83,177.65,107.36]
[1753878639879,4.55938046,177.82,177.65,107.36]
[1753878640079,4.55938046,177.81,177.67,5.6284]
[1753878640275,4.55938046,177.8,177.65,107.36]
[1753878640478,4.72695151,177.85,177.65,107.36]
[1753878640682,8.07460486,177.84,177.65,107.36]
[1753878640885,4.55821084,177.83,177.65,107.36]
[1753878641085,4.55821084,177.82,177.65,107.36]
[1753878641279,4.55821084,177.81,177.69,5.6278]
[1753878641486,10.34985151,177.85,177.69,5.6278]
[1753878641686,12.59141726,177.84,177.65,107.36]
[1753878641892,4.5580854,177.83,177.65,107.36]
[1753878642184,4.5580854,177.82,177.65,107.36]
[1753878642395,4.5580854,177.81,177.65,107.36]
[1753878642583,4.5580854,177.8,177.65,107.36]
[1753878642783,10.34985151,177.85,177.65,107.36]
[1753878643091,8.07410193,177.84,177.69,5.6278]
[1753878643277,10.34985151,177.85,177.7,107.36]
[1753878643278,8.07410193,177.83,177.7,107.36]
[1753878643479,4.55743088,177.82,177.71,5.6272]
[1753878643686,4.72695151,177.86,177.71,5.6272]
[1753878643879,4.5563994,177.85,177.7,107.36]
[1753878644190,4.5563994,177.84,177.75,5.6259]
[1753878644387,4.72695151,177.9,177.64,394.65]
[1753878644588,9.28219633,177.89,177.71,5.6272]
[1753878644791,14.30293588,177.88,177.72,107.36]
[1753878645086,4.55524482,177.87,177.72,107.36]
[1753878645394,5.623,177.85,177.72,107.36]
[1753878645593,4.55524482,177.84,177.72,107.36]
[1753878646089,4.5559914,177.83,177.72,112.9868]
[1753878646293,4.5559914,177.82,177.72,112.9868]
[1753878646485,10.34915151,177.88,177.72,112.9868]
[1753878646683,17.82171955,177.87,177.72,112.9868]
[1753878646891,8.07149989,177.86,177.72,112.9868]
[1753878647082,4.55526651,177.85,177.72,112.9868]
[1753878647286,4.55526651,177.84,177.72,112.9868]
[1753878647487,4.55526651,177.83,177.72,112.9868]
[1753878647683,5.6226,177.86,177.72,112.9868]
[1753878647884,4.55534313,177.85,177.72,112.9868]
[1753878648184,4.55534313,177.84,177.72,112.9868]
[1753878648380,4.55534313,177.83,177.69,5.6277]
[1753878648685,5.6232,177.84,177.7,107.36]
[1753878648887,4.72695151,177.87,177.7,107.36]
[1753878648888,4.55514582,177.83,177.7,107.36]
[1753878649086,4.72695151,177.87,177.7,107.36]
[1753878649388,17.8215926,177.86,177.7,107.36]
[1753878649582,4.55449226,177.85,177.7,107.36]
[1753878649778,124.26,177.94,177.7,107.36]